{"text_format":"1","workbook":"xlsx","n_sheets":2,"sheets":["リスト","別表３"],"not_rendered":{"charts":0,"images":0,"macros":1,"external_links":0,"defined_names":11,"comments":1,"pivot_tables":0},"unopened":[],"bounds":{"document_bytes":16777216,"sheet_cells":100000,"rows_first":2000,"rows_last":500,"rows_between":2000,"halvings":0,"cell_chars":16384,"cell_head_chars":4096},"cells_cut":0,"cells_raw":0,"read":"whole","date_system":"1900"}

{"sheet":"リスト","index":0,"n_rows":14,"n_cols":9,"rows_kept":14,"cut":false,"hidden":true,"merged":[]}
[]
[null,"リスト"]
[]
[null,"公共工事等又は物品役務等の区分","契約の相手方の区分","一般競争入札・指名競争入札の別","総合評価落札方式実施の別","随意契約の区分","随意契約の見直し","見直し実施年度","一括調達形態"]
[1,"公共工事等","所管公益法人","一般競争入札","総合評価実施","企画競争","引き続き競争入札，企画競争又は公募を実施","平成24年度","近隣官署一括"]
[2,"物品役務等","その他の公益法人","指名競争入札","価格競争","公募","事務・事業の中止","平成25年度","合同庁舎一括"]
[3,null,"独立行政法人等",null,null,"不落・不調による随意契約","競争入札に移行","平成26年度以降","管区一括"]
[4,null,"特殊法人等",null,null,"契約の性質又は目的が競争を許さない場合","企画競争に移行"]
[5,null,"特定民間法人等",null,null,"緊急の必要により競争に付することができない場合","公募に移行"]
[6,null,"その他の法人等",null,null,"競争に付することが不利と認められる場合","随意契約によらざるを得ないもの"]
[7,null,null,null,null,"特例政令に該当する場合"]
[8,null,null,null,null,"秘密随意契約"]
[9,null,null,null,null,"随意契約（その他）"]
[10]

{"sheet":"別表３","index":1,"n_rows":183,"n_cols":11,"rows_kept":183,"cut":false,"hidden":false,"merged":[[0,0,0,10]]}
["公共調達の適正化について（平成18年8月25日付財計第2017号）に基づく競争入札に係る情報の公表（物品役務等）"]
[null,null,null,null,null,null,null,null,null,null,"令和5年5月分"]
["No.","物品役務等の名称及び数量","契約担当官等の氏名並びにその所属する部局の名称及び所在地","契約を締結した日","契約の相手方の商号又は名称及び住所","法人番号","一般競争入札・指名競争入札の別\n(総合評価の実施)","予定価格\n（円）\n（税込）","契約金額\n（円）\n（税込）","落札率\n(％)","備　考"]
[1,"健康診断等業務委託契約","支出負担行為担当官\n　奈良地方検察庁検事正\n　伊藤　伸次\n（奈良県奈良市登大路町1-1）","2023-05-01","一般財団法人大和松寿会\n京都府京都市中京区三条通高倉東入桝屋町58･56",9130005015955,"一般競争入札",1344376,944900,{"$f":"ROUNDDOWN(I4/H4,3)","v":0.70199999999999996},"単価契約\n一括調達（近畿地方更生保護委員会）"]
[2,"芝生及び樹木保守管理業務","支出負担行為担当官代理\n　函館地方検察庁次席検事\n　溝口　修\n（北海道函館市上新川町1-13）","2023-05-01","株式会社田中潦風園\n北海道函館市東山町144-50",3440001001223,"一般競争入札",1419000,1100000,0.77500000000000002,"一括調達（北海道公安調査局）"]
[3,"令和5年度薬物検査試薬（唾液検査キット）調達契約","支出負担行為担当官\n　東北地方更生保護委員会委員長\n　原沢　和茂\n（宮城県仙台市青葉区片平1-3-1）","2023-05-01","東邦薬品株式会社宮城営業部\n宮城県仙台市青葉区木町通1-3-7",5010901023507,"一般競争入札",1752578,1421750,0.81100000000000005,"単価契約"]
[4,"茨木法務総合庁舎等植栽管理業務委託契約","支出負担行為担当官\n　大阪出入国在留管理局長\n　石崎　勇一\n（大阪府大阪市住之江区南港北1-29-53）","2023-05-01","株式会社ダーチャコンセプト\n大阪府大阪市住吉区我孫子3-8-7",2120001168475,"一般競争入札",2010879,1529000,0.76,"再度公告入札"]
[5,"茨城県、栃木県及び群馬県内矯正施設医療用医薬品共同供給契約\n（9品目）","支出負担行為担当官\n　栃木刑務所長\n　妙圓薗　史\n（栃木県栃木市総社町2484）","2023-05-01","アルフレッサ株式会社\n東京都千代田区内神田1-12-1",3010001027880,"一般競争入札",3256726,3226509,0.99,"単価契約\n一括調達（水戸刑務所、水府学院、喜連川社会復帰促進センター、喜連川少年院、前橋刑務所、赤城少年院、榛名女子学園、茨城農芸学院）"]
[6,"茨城県、栃木県及び群馬県内矯正施設医療用医薬品共同供給契約\n（3品目）","支出負担行為担当官\n　栃木刑務所長\n　妙圓薗　史\n（栃木県栃木市総社町2484）","2023-05-01","ナカノ薬品株式会社\n栃木県宇都宮市泉が丘5-7-20",4060001005534,"一般競争入札",3685403,3681800,0.999,"単価契約\n一括調達（水戸刑務所、水府学院、喜連川社会復帰促進センター、喜連川少年院、前橋刑務所、赤城少年院、榛名女子学園、茨城農芸学院）"]
[7,"コピー用紙A4（2，220箱）","支出負担行為担当官\n　東京拘置所長\n　平良　敦志\n（東京都葛飾区小菅1-35-1）","2023-05-01","コニカミノルタジャパン株式会社\n東京都港区芝浦1-1-1",9013401005070,"一般競争入札",5059380,4775220,0.94299999999999995,"単価契約\n一括調達（東京少年鑑別所）"]
[8,"茨城県、栃木県及び群馬県内矯正施設医療用医薬品共同供給契約\n（62品目）","支出負担行為担当官\n　栃木刑務所長\n　妙圓薗　史\n（栃木県栃木市総社町2484）","2023-05-01","株式会社西毛薬品\n群馬県高崎市柴崎町1163-2",6070001007370,"一般競争入札",4792062,4792062,1,"単価契約\n一括調達（水戸刑務所、水府学院、喜連川社会復帰促進センター、喜連川少年院、前橋刑務所、赤城少年院、榛名女子学園、茨城農芸学院）"]
[9,"法務省浦安総合センターで使用するガス","支出負担行為担当官\n　法務省大臣官房会計課長\n　民野　健治\n（東京都千代田区霞が関1-1-1）","2023-05-01","京葉瓦斯株式会社\n千葉県市川市市川南2-8-8",8040001026108,"一般競争入札",5467718,5467718,1,"単価契約\n再度公告入札"]
[10,"茨城県、栃木県及び群馬県内矯正施設医療用医薬品共同供給契約\n（52品目）","支出負担行為担当官\n　栃木刑務所長\n　妙圓薗　史\n（栃木県栃木市総社町2484）","2023-05-01","フクシマ薬品株式会社\n福島県二本松市平石3-153",4380001009420,"一般競争入札",6006356,5749150,0.95699999999999996,"単価契約\n一括調達（水戸刑務所、水府学院、喜連川社会復帰促進センター、喜連川少年院、前橋刑務所、赤城少年院、榛名女子学園、茨城農芸学院）"]
[11,"A重油供給単価契約","支出負担行為担当官\n　喜連川社会復帰促進センター長\n　岩﨑　裕之\n（栃木県さくら市喜連川5547）","2023-05-01","株式会社ENEOSサンエナジー\n東京都港区東新橋1-5-2",4010401036687,"一般競争入札",6237000,5998300,0.96099999999999997,"単価契約"]
[12,"被収容者用ちり紙（18，080包）","支出負担行為担当官\n　東京拘置所長\n　平良　敦志\n（東京都葛飾区小菅1-35-1）","2023-05-01","美保産業株式会社\n東京都品川区西中延1-3-23",5010701009482,"一般競争入札",6725760,6165280,0.91600000000000004,"単価契約"]
[13,"電力供給","支出負担行為担当官\n　仙台出入国在留管理局長\n　礒部　哲郎\n（宮城県仙台市宮城野区五輪1-3-20）","2023-05-01","ゼロワットパワー株式会社\n千葉県柏市若柴178-4",1040001089656,"一般競争入札",6452803,6387998,0.98899999999999999,"単価契約\n一括調達（仙台港湾空港技術調査事務所）\n予定価格総額8,027,872円\n契約金額総額\n7,947,249円"]
[14,"茨城県、栃木県及び群馬県内矯正施設医療用医薬品共同供給契約\n（99品目）","支出負担行為担当官\n　栃木刑務所長\n　妙圓薗　史\n（栃木県栃木市総社町2484）","2023-05-01","株式会社日医工茨城\n茨城県水戸市青柳町4190-4",5050001001913,"一般競争入札",7166917,6534251,0.91100000000000003,"単価契約\n一括調達（水戸刑務所、水府学院、喜連川社会復帰促進センター、喜連川少年院、前橋刑務所、赤城少年院、榛名女子学園、茨城農芸学院）"]
[15,"茨城県、栃木県及び群馬県内矯正施設医療用医薬品共同供給契約\n（22品目）","支出負担行為担当官\n　栃木刑務所長\n　妙圓薗　史\n（栃木県栃木市総社町2484）","2023-05-01","株式会社メディセオ\n東京都中央区京橋3-1-1",5010001087238,"一般競争入札",11274239,10870727,0.96399999999999997,"単価契約\n一括調達（水戸刑務所、水府学院、喜連川社会復帰促進センター、喜連川少年院、前橋刑務所、赤城少年院、榛名女子学園、茨城農芸学院）"]
[16,"茨城県、栃木県及び群馬県内矯正施設医療用医薬品共同供給契約\n（17品目）","支出負担行為担当官\n　栃木刑務所長\n　妙圓薗　史\n（栃木県栃木市総社町2484）","2023-05-01","鍋林株式会社\n長野県松本市中央3-2-27",7100001013785,"一般競争入札",10973925,10968875,0.999,"単価契約\n一括調達（水戸刑務所、水府学院、喜連川社会復帰促進センター、喜連川少年院、前橋刑務所、赤城少年院、榛名女子学園、茨城農芸学院）"]
[17,"茨城県、栃木県及び群馬県内矯正施設医療用医薬品共同供給契約\n（278品目）","支出負担行為担当官\n　栃木刑務所長\n　妙圓薗　史\n（栃木県栃木市総社町2484）","2023-05-01","株式会社中央薬品\n神奈川県横浜市泉区和泉町1191-4",6020001029840,"一般競争入札",19806185,18060495,0.91100000000000003,"単価契約\n一括調達（水戸刑務所、水府学院、喜連川社会復帰促進センター、喜連川少年院、前橋刑務所、赤城少年院、榛名女子学園、茨城農芸学院）"]
[18,"法務省における情報セキュリティマネジメントの改善に関する調査等業務の請負　一式","支出負担行為担当官\n　法務省大臣官房会計課長\n　民野　健治\n（東京都千代田区霞が関1-1-1）","2023-05-01","MUSARUBRA　JAPAN株式会社 \n東京都渋谷区道玄坂1-12-1",3010401158607,"一般競争入札\n（総合評価実施）",52333776,42350000,0.80900000000000005]
[19,"被収容者各種検診請負契約","支出負担行為担当官\n　沖縄刑務所長\n　中村　志郎\n（沖縄県南城市知念字具志堅330）","2023-05-02","一般財団法人沖縄県健康づくり財団\n沖縄県島尻郡南風原町字宮平212",1360005001816,"一般競争入札",2291696,2212100,0.96499999999999997,"単価契約"]
[20,"広島高等検察庁等における定期健康診断等委託業務契約","支出負担行為担当官\n　広島高等検察庁検事長\n　和田　雅樹\n（広島県広島市中区上八丁堀2-31）","2023-05-02","医療法人社団ヤマナ会\n広島県東広島市西条町吉行2214",3240005004003,"一般競争入札",6666000,6484005,0.97199999999999998,"単価契約\n一括調達（広島地方検察庁、中国地方更生保護委員会、広島出入国在留管理局、中国公安調査局）"]
[21,"札幌地方検察庁庁用自動車交換契約（1台）","支出負担行為担当官\n　札幌地方検察庁検事正\n　鈴木　眞理子\n（北海道札幌市中央区大通西12）","2023-05-08","札幌トヨペット株式会社\n北海道札幌市豊平区月寒東1-14-1-1",7430001020195,"一般競争入札\n（総合評価実施）",4779190,3910760,0.81799999999999995]
[22,"「子どもの人権SOSミニレター等」の梱包・発送業務の請負　一式","支出負担行為担当官\n　法務省大臣官房会計課長\n　民野　健治\n（東京都千代田区霞が関1-1-1）","2023-05-08","朝日梱包株式会社 \n東京都墨田区江東橋5-7-10",9010601040880,"一般競争入札",14932625,14058000,0.94099999999999995,"再度公告入札"]
[23,"水戸地方法務局龍ケ崎支局及び取手出張所高圧受変電設備更新作業","支出負担行為担当官\n　水戸地方法務局長\n　田中　徹\n（茨城県水戸市北見町1-1）","2023-05-09","株式会社ビルド\n茨城県牛久市猪子町940-11",2050001040798,"一般競争入札",3064343,1736900,0.56599999999999995]
[24,"土地閉鎖登記簿電子化作業請負契約","支出負担行為担当官\n　那覇地方法務局長\n　野見山　弘幸\n（沖縄県那覇市樋川1-15-15）","2023-05-09","株式会社福祉工房アイ・ディ・エス\n東京都日野市日野台5-22-37",5013401002278,"一般競争入札",6736327,5478000,0.81299999999999994]
[25,"登記研究各号528部ほかの供給　一式","支出負担行為担当官\n　法務省大臣官房会計課長\n　民野　健治\n（東京都千代田区霞が関1-1-1）","2023-05-09","株式会社テイハン\n東京都北区東十条6-6-18",7010001005049,"一般競争入札",10041065,9669349,0.96199999999999997,"再度公告入札\n単価契約"]
[26,"松山空港ターミナル及び厳原港国際ターミナルの供用開始に伴う外国人出入国情報システム用端末機器等の賃貸借　一式","支出負担行為担当官\n　出入国在留管理庁次長\n　西山　卓爾\n（東京都千代田区霞が関1-1-1）","2023-05-09","株式会社日立製作所\n東京都千代田区丸の内1-6-6\n株式会社JECC\n東京都千代田区丸の内3-4-1","7010001008844\n2010001033475","一般競争入札",30321145,28631900,0.94399999999999995,"2か年分等の保守料を含む。\n本体価格合計\n19,184,000円\n賃貸借及び保守料\n9,447,900円"]
[27,"複写機（複合機）等の賃貸借等　一式","支出負担行為担当官\n　法務省大臣官房会計課長\n　民野　健治\n（東京都千代田区霞が関1-1-1）","2023-05-09","コニカミノルタジャパン株式会社\n東京都港区芝浦1-1-1\n日通リース＆ファイナンス株式会社\n東京都港区海岸1-14-22","9013401005070\n7010401157737","一般競争入札",81992790,32207422,0.39200000000000002,"国庫債務負担行為\n保守料につき単価契約"]
[28,"法令改正（不動産登記法及び地方税法）への対応に関する登記情報システムのアプリケーション機能改修業務の請負　一式","支出負担行為担当官\n　法務省大臣官房会計課長\n　民野　健治\n（東京都千代田区霞が関1-1-1）","2023-05-09","富士通株式会社 \n東京都港区東新橋1-5-2",1020001071491,"一般競争入札\n（総合評価実施）",1081014682,1073600000,0.99299999999999999]
[29,"ジュリスト各号67部ほかの供給（単価契約）　一式","支出負担行為担当官\n　法務省大臣官房会計課長\n　民野　健治\n（東京都千代田区霞が関1-1-1）","2023-05-10","株式会社ドリーム・ブレイン\n東京都港区麻布台1-11-10",7010401071418,"一般競争入札",2161775,2072626,0.95799999999999996,"再度公告入札\n単価契約"]
[30,"法律時報　各号80部ほかの供給（単価契約）　一式","支出負担行為担当官\n　法務省大臣官房会計課長\n　民野　健治\n（東京都千代田区霞が関1-1-1）","2023-05-10","株式会社ドリーム・ブレイン\n東京都港区麻布台1-11-10",7010401071418,"一般競争入札",2307145,2213575,0.95899999999999996,"再度公告入札\n単価契約"]
[31,"矯正医療運営に係る調査・検討業務の請負　一式","支出負担行為担当官\n　法務省大臣官房会計課長\n　民野　健治\n（東京都千代田区霞が関1-1-1）","2023-05-10","株式会社病院システム \n東京都豊島区目白2-16-19",2013301010458,"一般競争入札\n（総合評価実施）",26271960,20460000,0.77800000000000002]
[32,"松山空港ターミナル及び厳原港国際ターミナルの供用開始に伴うIC旅券対応・出入国審査等旅券自動読取装置の賃貸借　一式","支出負担行為担当官\n　出入国在留管理庁次長\n　西山　卓爾\n（東京都千代田区霞が関1-1-1）","2023-05-11","日本電気株式会社\n東京都港区芝5-7-1\nNECキャピタルソリューション株式会社\n東京都港区港南2-15-3","7010401022916\n8010401021784","一般競争入札",14785551,4539920,0.307,"5か年分の保守料を含む。\n本体価格合計\n1,748,120円\n賃貸借及び保守料\n2,791,800円"]
[33,"長期相続登記等未了土地解消作業（登記名義人200名分）の委託　一式","支出負担行為担当官\n　佐賀地方法務局長\n　山口　正広\n（佐賀県佐賀市城内2-10-20）","2023-05-11","司法書士法人麿法務事務所\n佐賀県佐賀市駅南本町1-23",5300005005983,"一般競争入札",7689297,6599989,0.85799999999999998]
[34,"入浴用石けんの供給一式（200，170個）","支出負担行為担当官\n　東京拘置所長\n　平良　敦志\n（東京都葛飾区小菅1-35-1）","2023-05-11","美保産業株式会社\n東京都品川区西中延1-3-23",5010701009482,"一般競争入札",10603615,7926732,0.747]
[35,"練り歯磨き剤の供給一式（59，630個）","支出負担行為担当官\n　東京拘置所長\n　平良　敦志\n（東京都葛飾区小菅1-35-1）","2023-05-11","美保産業株式会社\n東京都品川区西中延1-3-23",5010701009482,"一般競争入札",9760152,8067939,0.82599999999999996]
[36,"神戸地方検察庁庁用自動車（5台）賃貸借契約","支出負担行為担当官\n　神戸地方検察庁検事正\n　山口　英幸\n（兵庫県神戸市中央区橘通1-4-1）","2023-05-11","株式会社トヨタレンタリース兵庫\n兵庫県神戸市長田区北町2-5",1140001016534,"一般競争入札\n（総合評価実施）",10602075,9104700,0.85799999999999998]
[37,"令和5年度青森地方検察庁ほか2官署事務用品（消耗品289品目）購入契約","支出負担行為担当官\n　青森地方検察庁検事正\n　宮地　裕美\n（青森県青森市長島1-3-25）","2023-05-12","株式会社金入青森支店\n青森県青森市第二問屋町3-3-34",8420001005733,"一般競争入札",5823898,4257465,{"$f":"ROUNDDOWN(I40/H40,3)","v":0.73099999999999998},"単価契約\n一括調達（青森地方法務局、青森刑務所）"]
[38,"鹿児島刑務所自動車（ミニバンタイプ）交換契約","支出負担行為担当官\n　鹿児島刑務所長\n　山道　幸伸\n（鹿児島県姶良郡湧水町中津川1733）","2023-05-12","日産福岡販売株式会社\n福岡県福岡市中央区平尾3-6-3",5290001025962,"一般競争入札\n（総合評価実施）",4661110,4271179,0.91600000000000004]
[39,"福井地方検察庁庁用自動車（1台）交換契約","支出負担行為担当官\n　福井地方検察庁検事正\n　築　雅子\n（福井県福井市春山1-1-54）","2023-05-12","福井ダイハツ販売株式会社\n福井県福井市浅水町102-10",3210001003069,"一般競争入札\n（総合評価実施）",4630498,4557100,0.98399999999999999]
[40,"令和5年司法試験予備試験用法文印刷製本等業務の請負　一式","支出負担行為担当官\n　法務省大臣官房会計課長\n　民野　健治\n（東京都千代田区霞が関1-1-1）","2023-05-12","第一法規株式会社\n東京都港区南青山2-11-17",7010401017486,"一般競争入札",9331752,7690144,0.82399999999999995,"単価契約"]
[41,"地図情報システム用印刷装置に係る消耗品（京セラドキュメントソリューションズ株式会社製トナー）の供給一式（単価契約）","支出負担行為担当官\n　秋田地方法務局長\n　本間　与志雄\n（秋田県秋田市山王7-1-3）","2023-05-12","エヌ・ティ・ティ・データ・カスタマサービス株式会社\n東京都江東区豊洲3-3-9",6010601032609,"一般競争入札",39513105,26808320,0.67800000000000005,"単価契約\n一括調達（東京法務局、横浜地方法務局、さいたま地方法務局、千葉地方法務局、水戸地方法務局、宇都宮地方法務局、前橋地方法務局、静岡地方法務局、甲府地方法務局、長野地方法務局、新潟地方法務局、大阪法務局、京都地方法務局、神戸地方法務局、奈良地方法務局、和歌山地方法務局、広島法務局、山口地方法務局、岡山地方法務局、鳥取地方法務局、松江地方法務局、仙台法務局、福島地方法務局、山形地方法務局、盛岡地方法務局、秋田地方法務局、青森地方法務局、札幌法務局、函館地方法務局、旭川地方法務局、釧路地方法務局、高松法務局、徳島地方法務局、高知地方法務局、松山地方法務局）"]
[42,"令和5年度医薬品等の共同調達（単価契約）（25品目）","支出負担行為担当官\n　金沢刑務所長\n　湯浅　康一\n（石川県金沢市田上町公1）","2023-05-15","明祥株式会社\n石川県金沢市無量寺町ハ1",9220001001784,"一般競争入札",1864708,1015500,0.54400000000000004,"単価契約\n一括調達（富山刑務所、福井刑務所）"]
[43,"令和5年度医薬品等の共同調達（単価契約）（19品目）","支出負担行為担当官\n　金沢刑務所長\n　湯浅　康一\n（石川県金沢市田上町公1）","2023-05-15","株式会社スズケン金沢支店\n石川県金沢市問屋町2-50",1180001017009,"一般競争入札",1692691,1321613,0.78,"単価契約\n一括調達（富山刑務所、福井刑務所）"]
[44,"令和5年度医薬品等の共同調達（単価契約）（44品目）","支出負担行為担当官\n　金沢刑務所長\n　湯浅　康一\n（石川県金沢市田上町公1）","2023-05-15","北陸東邦株式会社金沢営業所\n石川県金沢市河原市町52",2230001000692,"一般競争入札",3966368,2887027,0.72699999999999998,"単価契約\n一括調達（富山刑務所、福井刑務所）"]
[45,"令和5年度医薬品等の共同調達（単価契約）（10品目）","支出負担行為担当官\n　金沢刑務所長\n　湯浅　康一\n（石川県金沢市田上町公1）","2023-05-15","中北薬品株式会社富山支店\n富山県富山市上袋251",6180001039139,"一般競争入札",3489915,2893440,0.82899999999999996,"単価契約\n一括調達（富山刑務所、福井刑務所）"]
[46,"令和5年度司法書士試験及び土地家屋調査士試験における採点処理及び成績通知書作成等業務の請負","支出負担行為担当官\n　法務省大臣官房会計課長\n　民野　健治\n（東京都千代田区霞が関1-1-1）","2023-05-15","日本情報産業株式会社 \n東京都渋谷区渋谷3-1-4",1011001017799,"一般競争入札",3783620,3769183,0.996,"単価契約"]
[47,"医療用医薬品購入単価契約","支出負担行為担当官\n　大阪拘置所長\n　江頭　和人\n（大阪府大阪市都島区友渕町1-2-5）","2023-05-15","株式会社ケーエスケー\n大阪府大阪市中央区本町橋1-20",2120001078303,"一般競争入札",4187040.0000000005,4158000.0000000005,0.99299999999999999,"単価契約"]
[48,"地方公共団体における再犯防止の取組を促進するための協議会の実施業務の委託","支出負担行為担当官\n　法務省大臣官房会計課長\n　民野　健治\n（東京都千代田区霞が関1-1-1）","2023-05-15","クリエイティブ・ファクトリー株式会社 \n東京都新宿区新宿5-15-14",3011301024114,"一般競争入札",5681142,4642000,0.81699999999999995]
[49,"令和5年度医薬品等の共同調達（単価契約）（84品目）","支出負担行為担当官\n　金沢刑務所長\n　湯浅　康一\n（石川県金沢市田上町公1）","2023-05-15","株式会社中央薬品\n神奈川県横浜市泉区和泉町1191-4",6020001029840,"一般競争入札",11969957,6299308,0.52600000000000002,"単価契約\n一括調達（富山刑務所、福井刑務所）"]
[50,"六法全書等供給","支出負担行為担当官\n　大阪高等検察庁検事長\n　小山　太士\n（大阪府大阪市福島区福島1-1-60）","2023-05-15","株式会社旭屋書店\n大阪府大阪市北区中津1-18-18",9120001060048,"一般競争入札",11479050,8560550,0.745,"一括調達（大阪地方検察庁、京都地方検察庁、神戸地方検察庁、奈良地方検察庁、大津地方検察庁、和歌山地方検察庁、法務総合研究所大阪支所）"]
[51,"医療用医薬品購入単価契約","支出負担行為担当官\n　大阪拘置所長\n　江頭　和人\n（大阪府大阪市都島区友渕町1-2-5）","2023-05-15","岸田薬品株式会社\n京都府京都市伏見区淀下津町257-43",2130001045649,"一般競争入札",24110997,20946272,0.86799999999999999,"単価契約"]
[52,"医療用医薬品購入単価契約","支出負担行為担当官\n　大阪拘置所長\n　江頭　和人\n（大阪府大阪市都島区友渕町1-2-5）","2023-05-15","株式会社中央薬品\n神奈川県横浜市泉区和泉町1191-4",6020001029840,"一般競争入札",30644295,28487094,0.92900000000000005,"単価契約"]
[53,"医療用医薬品購入単価契約","支出負担行為担当官\n　大阪拘置所長\n　江頭　和人\n（大阪府大阪市都島区友渕町1-2-5）","2023-05-15","アルフレッサ株式会社\n東京都千代田区内神田1-12-1",3010001027880,"一般競争入札",35856555,35856555,1,"単価契約"]
[54,"医療用医薬品購入単価契約","支出負担行為担当官\n　大阪拘置所長\n　江頭　和人\n（大阪府大阪市都島区友渕町1-2-5）","2023-05-15","株式会社メディセオ\n東京都中央区八重洲2-7-15",5010001087238,"一般競争入札",49024569,48568236,0.99,"単価契約"]
[55,"医療用医薬品購入単価契約","支出負担行為担当官\n　大阪拘置所長\n　江頭　和人\n（大阪府大阪市都島区友渕町1-2-5）","2023-05-15","株式会社スズケン\n愛知県名古屋市東区東片端町8",1180001017009,"一般競争入札",54467497,53246795,0.97699999999999998,"単価契約"]
[56,"横浜支局横浜港分室におけるLAN敷設作業","支出負担行為担当官\n　東京出入国在留管理局長\n　宮尾　芳彰\n（東京都港区港南5-5-30）","2023-05-16","株式会社バルテック\n東京都新宿区西新宿6-22-1",1011101010480,"一般競争入札",1370600,385000,0.28000000000000003]
[57,"職員に対する健康診断等業務委託契約","支出負担行為担当官\n　笠松刑務所長\n　齋藤　晶絵\n（岐阜県羽島郡笠松町中川町23）","2023-05-16","一般財団法人名古屋公衆医学研究所\n愛知県名古屋市中村区長筬町4-23",1180005004903,"一般競争入札",1103960,1103960,1,"単価契約"]
[58,"令和5年度兵庫地区医薬品等購入契約　","支出負担行為担当官\n　播磨社会復帰促進センター長\n　山岡　龍一\n（兵庫県加古川市八幡町宗佐544）","2023-05-16","関西医療株式会社\n兵庫県加古川市加古川町備後394",2140001042827,"一般競争入札",3077350,2802800,0.91,"単価契約\n一括調達（神戸刑務所、加古川刑務所、姫路少年刑務所、神戸拘置所、加古川学園、神戸少年鑑別所）"]
[59,"令和5年度兵庫地区医薬品等購入契約　","支出負担行為担当官\n　播磨社会復帰促進センター長\n　山岡　龍一\n（兵庫県加古川市八幡町宗佐544）","2023-05-16","宮野医療器株式会社\n兵庫県神戸市中央区楠町5-4-8",2140001011212,"一般競争入札",5504990,5151820,0.93500000000000005,"単価契約\n共同調達（神戸刑務所、加古川刑務所、姫路少年刑務所、神戸拘置所、加古川学園、神戸少年鑑別所）"]
[60,"令和5年度兵庫地区医薬品等購入契約","支出負担行為担当官\n　播磨社会復帰促進センター長\n　山岡　龍一\n（兵庫県加古川市八幡町宗佐544）","2023-05-16","アルフレッサ株式会社\n東京都千代田区内神田1-12-1",3010001027880,"一般競争入札",20442800,20442800,1,"単価契約\n一括調達（神戸刑務所、加古川刑務所、姫路少年刑務所、神戸拘置所、加古川学園、神戸少年鑑別所）"]
[61,"令和5年度兵庫地区医薬品等購入契約　","支出負担行為担当官\n　播磨社会復帰促進センター長\n　山岡　龍一\n（兵庫県加古川市八幡町宗佐544）","2023-05-16","株式会社メディセオ\n東京都中央区京橋3-1-1",5010001087238,"一般競争入札",27670070,27662190,0.999,"単価契約\n一括調達（神戸刑務所、加古川刑務所、姫路少年刑務所、神戸拘置所、加古川学園、神戸少年鑑別所）"]
[62,"令和5年度兵庫地区医薬品等購入契約　","支出負担行為担当官\n　播磨社会復帰促進センター長\n　山岡　龍一\n（兵庫県加古川市八幡町宗佐544）","2023-05-16","株式会社中央薬品\n神奈川県横浜市泉区和泉町1191-4",6020001029840,"一般競争入札",42222770,36916220,0.874,"単価契約\n一括調達（神戸刑務所、加古川刑務所、姫路少年刑務所、神戸拘置所、加古川学園、神戸少年鑑別所）"]
[63,"令和5年度刑務所作業製品運送業務委託契約","支出負担行為担当官\n　加古川刑務所長\n　小松　一俊\n（兵庫県加古川市加古川町大野1530）","2023-05-17","トナミ運輸株式会社\n富山県高岡市昭和町3-2-12",7230001012147,"一般競争入札",1481035,1417574,0.95699999999999996,"単価契約"]
[64,"令和5年度名古屋拘置所消防設備総合点検等業務委託契約","支出負担行為担当官\n　名古屋拘置所長\n　小川　雅之\n（愛知県名古屋市東区白壁1-1）","2023-05-17","株式会社京津管理\n京都府京都市山科区大塚丹田35-4",1130001024661,"一般競争入札",3395455,2126300,0.626]
[65,"特定測量委託契約","契約担当官\n　宮崎地方法務局長\n　山内　恵\n（宮崎県宮崎市別府町1-1）","2023-05-17","公益社団法人宮崎県公共嘱託登記土地家屋調査士協会\n宮崎県宮崎市旭2-2-2",5350005000063,"一般競争入札",2245306,2164989,0.96399999999999997]
[66,"被収容者給食用食材二か月分（もずく16KG他23品目）","支出負担行為担当官\n　大分刑務所長\n　和田　浩史\n（大分県大分市畑中5-4-1）","2023-05-17","株式会社大給\n大分県大分市大分流通業務団地1-1-2",7320001001603,"一般競争入札",3239086,2303398,0.71099999999999997,"単価契約"]
[67,"大津地方検察庁庁用自動車交換契約","支出負担行為担当官\n　大津地方検察庁検事正\n　畑中　良彦\n（滋賀県大津市京町3-1-1）","2023-05-17","トヨタカローラ滋賀株式会社\n滋賀県草津市東草津2-3-54",1160001013001,"一般競争入札\n（総合評価実施）",2971860,2650296,0.89100000000000001]
[68,"令和5年度6月期ボイラー用白灯油供給契約（52，000リットル）","支出負担行為担当官\n　府中刑務所長\n　白川　秀史\n（東京都府中市晴見町4-10）","2023-05-17","シナネン株式会社\n東京都港区三田3-5-27",2220001003309,"一般競争入札",4862000,4415840,0.90800000000000003,"単価契約"]
[69,"被収容者給食用食材二か月分（牛もも／スライス205KG他28品目）","支出負担行為担当官\n　大分刑務所長\n　和田　浩史\n（大分県大分市畑中5-4-1）","2023-05-17","株式会社山丁\n大分県由布市湯布院町川南1669-1",8320001004092,"一般競争入札",6259723,4514123,0.72099999999999997,"単価契約"]
[70,"土地閉鎖登記簿電子化作業　一式","支出負担行為担当官\n　釧路地方法務局長\n　西山　悟\n（北海道釧路市幸町10-3）","2023-05-17","株式会社セプコム\n東京都港区赤坂2-22-15",4010401034633,"一般競争入札",14591744,11829489,0.81]
[71,"令和5年度矯正総合情報通信ネットワークシステムにおける業務アプリケーションに係る保守業務の請負　一式","支出負担行為担当官\n　法務省大臣官房会計課長\n　民野　健治\n（東京都千代田区霞が関1-1-1）","2023-05-17","株式会社セック\n東京都世田谷区用賀4-10-1",1010901026918,"一般競争入札",20471440,19470000,0.95099999999999996]
[72,"令和5年度長野刑務所職業訓練（介護福祉科）介護福祉士実務者研修業務委託契約","支出負担行為担当官\n　長野刑務所長\n　関原　隆男\n（長野県須坂市大字須坂1200）","2023-05-18","長野県高齢者生活協同組合\n長野県長野市大字南長池761-3",9100005001801,"一般競争入札",1010000,844063,0.83499999999999996,"単価契約"]
[73,"加古川刑務所草刈り等委託契約","支出負担行為担当官\n　加古川刑務所長\n　小松　一俊\n（兵庫県加古川市加古川町大野1530）","2023-05-18","一般社団法人YANESEKO　JAPAN\n兵庫県加古川市加古川町粟津819-5",6140005023737,"一般競争入札",3082863,1542816,0.5]
[74,"介護福祉士実務者研修出張講座請負契約","支出負担行為担当官\n　山形刑務所長\n　長谷川　誠\n（山形県山形市あけぼの2-1-1）","2023-05-18","株式会社エデュケイト・ジャパン\n宮城県仙台市青葉区五橋1-4-30",9370001014490,"一般競争入札",3069000,2167000,0.70599999999999996]
[75,"自動車交換契約（1台）","支出負担行為担当官\n　網走刑務所長\n　山本　英博\n（北海道網走市字三眺）","2023-05-18","旭川トヨタ自動車株式会社網走店\n北海道網走市大曲1-14-9",4450001000264,"一般競争入札\n（総合評価実施）",3720000,2671702,0.71799999999999997]
[76,"令和4年度札幌刑務所空調設備等更新","支出負担行為担当官\n　札幌刑務所長\n　飛鳥　雅子\n（北海道札幌市東区東苗穂2-1-5-1）","2023-05-18","株式会社典美\n東京都八王子市川口町2098-5",3010101012411,"一般競争入札",12135200,4686000,0.38600000000000001]
[77,"健康診断業務委託契約（24検査項目）","支出負担行為担当官\n　広島刑務所長\n　中田　昌伸\n（広島県広島市中区吉島町13-114）","2023-05-18","医療法人健康倶楽部\n広島県広島市中区大手町3-7-5",8240005001202,"一般競争入札",9774930,7646650,0.78200000000000003,"単価契約"]
[78,"令和5年度供託諸用紙、登記諸用紙等の製造業務の請負　一式","支出負担行為担当官\n　法務省大臣官房会計課長\n　民野　健治\n（東京都千代田区霞が関1-1-1）","2023-05-18","株式会社第一印刷所\n新潟県新潟市中央区和合町2-4-18",1110001002917,"一般競争入札",17527815,17223134,0.98199999999999998,"単価契約"]
[79,"徳島地方合同庁舎植栽管理業務委託　一式","支出負担行為担当官\n　徳島地方法務局長\n　横山　紫穂\n（徳島県徳島市徳島町城内6-6）","2023-05-19","株式会社大野\n徳島県徳島市佐古一番町10-1",7480001000358,"一般競争入札",629797,467360,0.74199999999999999,"一括調達（四国行政評価支局、四国地方更生保護委員会、徳島労働局）\n予定価格総額\n1,420,060円\n契約金額総額\n1,053,800円"]
[80,"仙台法務総合庁舎及び法務総合研究所仙台支所構内植栽管理業務請負契約","支出負担行為担当官\n　仙台高等検察庁検事長\n　辻　裕教\n（宮城県仙台市青葉区片平1-3-1）","2023-05-19","有限会社サトウグリーン\n宮城県仙台市泉区南光台南2-14-18",7370002000913,"一般競争入札",1892440,1870000,0.98799999999999999,"一括調達（仙台地方検察庁、東北地方更生保護委員会）"]
[81,"医薬品（7品目）","支出負担行為担当官\n　川越少年刑務所長\n　日笠　和彦\n（埼玉県川越市南大塚6-40-1）","2023-05-19","酒井薬品株式会社\n東京都三鷹市野崎1-11-22",8012401012482,"一般競争入札",2036880,1944777,0.95399999999999996,"単価契約\n一括調達（府中刑務所、立川拘置所、多摩少年院、愛光女子学園、東京少年鑑別所、さいたま少年鑑別所）"]
[82,"令和5年7月1日付採用事務補佐員用事務用什器等の調達契約（総価契約）","支出負担行為担当官\n　九州地方更生保護委員会委員長\n　古川　芳昭\n（福岡県福岡市中央区六本松4-2-3）","2023-05-19","株式会社フジモト\n福岡県北九州市小倉北区西港町61-15",9290801003255,"一般競争入札",2218714,2181300,0.98299999999999998]
[83,"医薬品（8品目）","支出負担行為担当官\n　川越少年刑務所長\n　日笠　和彦\n（埼玉県川越市南大塚6-40-1）","2023-05-19","株式会社小平ケミカル\n東京都東大和市向原1-5-11",4012701009356,"一般競争入札",3769161,2278994,0.60399999999999998,"単価契約\n一括調達（府中刑務所、立川拘置所、多摩少年院、愛光女子学園、東京少年鑑別所、さいたま少年鑑別所）"]
[84,"オンライン研修用WI-FIルーターの賃貸借　一式","支出負担行為担当官\n　出入国在留管理庁次長\n　西山　卓爾\n（東京都千代田区霞が関1-1-1）","2023-05-19","株式会社ジェイ・アンド・ワイ\n東京都中央区銀座4-9-5",1010001141543,"一般競争入札",6358616,3043018,0.47799999999999998,"単価契約"]
[85,"大阪医療刑務所ガス供給契約","支出負担行為担当官\n　大阪医療刑務所長\n　市川　昌孝\n（大阪府堺市堺区田出井町8-80）","2023-05-19","大阪瓦斯株式会社\n大阪府大阪市中央区平野町4-1-2",3120001077601,"一般競争入札",3878674,3860967,0.995,"単価契約"]
[86,"医薬品供給契約（D-クロルフェニラミンマレイン酸塩徐放錠6MG　ほか98品目）","支出負担行為担当官\n　京都刑務所長\n　山本　隆芳\n（京都府京都市山科区東野井ノ上町20）","2023-05-19","岸田薬品株式会社\n京都府京都市伏見区淀下津町257-43",2130001045649,"一般競争入札",4779169,4110521,0.86,"単価契約\n一括調達（京都拘置所、京都少年鑑別所）"]
[87,"令和5年度食器洗浄機更新整備一式","支出負担行為担当官\n　前橋刑務所長\n　室井　正則\n（群馬県前橋市南町1-23-7）","2023-05-19","綜合厨房設備株式会社\n群馬県前橋市荒口町783-4",9070001001858,"一般競争入札",4957500,4840000,0.97599999999999998]
[88,"医薬品供給契約（アドレナリン注　ほか94品目）","支出負担行為担当官\n　京都刑務所長\n　山本　隆芳\n（京都府京都市山科区東野井ノ上町20）","2023-05-19","株式会社大正堂\n滋賀県甲賀市水口町城東3-38",6160001005381,"一般競争入札",7577838,5662095,0.747,"単価契約\n一括調達（京都拘置所、京都少年鑑別所）"]
[89,"佐賀地方法務局伊万里支局における土地閉鎖登記簿電子化作業　一式","支出負担行為担当官\n　佐賀地方法務局長\n　山口　正広\n（佐賀県佐賀市城内2-10-20）","2023-05-19","株式会社福祉工房アイ・ディ・エス\n東京都日野市日野台5-22-37",5013401002278,"一般競争入札",8735958,6215000,0.71099999999999997]
[90,"医薬品（104品目）","支出負担行為担当官\n　川越少年刑務所長\n　日笠　和彦\n（埼玉県川越市南大塚6-40-1）","2023-05-19","株式会社メディセオ\n東京都中央区八重洲2-7-15",5010001087238,"一般競争入札",7018849,6769453,0.96399999999999997,"単価契約\n一括調達（府中刑務所、立川拘置所、多摩少年院、愛光女子学園、東京少年鑑別所、さいたま少年鑑別所）"]
[91,"医薬品供給契約（アトモキセチン塩酸塩　ほか201品目）","支出負担行為担当官\n　京都刑務所長\n　山本　隆芳\n（京都府京都市山科区東野井ノ上町20）","2023-05-19","株式会社中央薬品\n神奈川県横浜市泉区和泉町1191-4",6020001029840,"一般競争入札",10800402,7049596,0.65200000000000002,"単価契約\n一括調達（京都拘置所、京都少年鑑別所）"]
[92,"医薬品（71品目）","支出負担行為担当官\n　川越少年刑務所長\n　日笠　和彦\n（埼玉県川越市南大塚6-40-1）","2023-05-19","株式会社京葉東和薬品\n千葉県千葉市中央区村田町893-5",5040001002144,"一般競争入札",8249466,7090116,0.85899999999999999,"単価契約\n一括調達（府中刑務所、立川拘置所、多摩少年院、愛光女子学園、東京少年鑑別所、さいたま少年鑑別所）"]
[93,"医薬品（19品目）","支出負担行為担当官\n　川越少年刑務所長\n　日笠　和彦\n（埼玉県川越市南大塚6-40-1）","2023-05-19","株式会社新星医薬商事\n千葉県千葉市中央区都町8-5-27",7040001003082,"一般競争入札",11664771,7166915,0.61399999999999999,"単価契約\n一括調達（府中刑務所、立川拘置所、多摩少年院、愛光女子学園、東京少年鑑別所、さいたま少年鑑別所）"]
[94,"東京法務局城南出張所冷温水発生機オーバーホール作業一式","支出負担行為担当官\n　東京法務局長\n　平光　信隆\n（東京都千代田区九段南1-1-15）","2023-05-19","株式会社典美\n東京都八王子市川口町2098-5",3010101012411,"一般競争入札",8998298,8118000,0.90200000000000002]
[95,"医薬品（100品目）","支出負担行為担当官\n　川越少年刑務所長\n　日笠　和彦\n（埼玉県川越市南大塚6-40-1）","2023-05-19","北海道ジェネリック株式会社\n北海道札幌市中央区北十一条西24-1-6",4440001005256,"一般競争入札",11759524,9563376,0.81299999999999994,"単価契約\n一括調達（府中刑務所、立川拘置所、多摩少年院、愛光女子学園、東京少年鑑別所、さいたま少年鑑別所）"]
[96,"2次元スキャナ137台等の購入　一式","支出負担行為担当官\n　出入国在留管理庁次長\n　西山　卓爾\n（東京都千代田区霞が関1-1-1）","2023-05-19","日本電気株式会社\n東京都港区芝5-7-1",7010401022916,"一般競争入札",11385599,10077870,0.88500000000000001]
[97,"医薬品（42品目）","支出負担行為担当官\n　川越少年刑務所長\n　日笠　和彦\n（埼玉県川越市南大塚6-40-1）","2023-05-19","株式会社バイタルネット\n宮城県仙台市青葉区大手町1-1",4370001008142,"一般競争入札",10886631,10230924,0.93899999999999995,"単価契約\n一括調達（府中刑務所、立川拘置所、多摩少年院、愛光女子学園、東京少年鑑別所、さいたま少年鑑別所）"]
[98,"医薬品供給契約（D-クロルフェニラミンマレイン酸塩錠　ほか59品目）","支出負担行為担当官\n　京都刑務所長\n　山本　隆芳\n（京都府京都市山科区東野井ノ上町20）","2023-05-19","株式会社メディセオ京都支社\n京都府中京区西ノ京下合町4-1",5010001087238,"一般競争入札",13875197,10444392,0.752,"単価契約\n一括調達（京都拘置所、京都少年鑑別所）"]
[99,"医薬品（328品目）","支出負担行為担当官\n　川越少年刑務所長\n　日笠　和彦\n（埼玉県川越市南大塚6-40-1）","2023-05-19","株式会社中央薬品\n神奈川県横浜市泉区和泉町1191-4",6020001029840,"一般競争入札",22422635,20448015,0.91100000000000003,"単価契約\n一括調達（府中刑務所、立川拘置所、多摩少年院、愛光女子学園、東京少年鑑別所、さいたま少年鑑別所）"]
[100,"医薬品（8品目）","支出負担行為担当官\n　川越少年刑務所長\n　日笠　和彦\n（埼玉県川越市南大塚6-40-1）","2023-05-19","アルフレッサ株式会社\n東京都千代田区内神田1-12-1",3010001027880,"一般競争入札",23146816,21874520,0.94499999999999995,"単価契約\n一括調達（府中刑務所、立川拘置所、多摩少年院、愛光女子学園、東京少年鑑別所、さいたま少年鑑別所）"]
[101,"医薬品（23品目）","支出負担行為担当官\n　川越少年刑務所長\n　日笠　和彦\n（埼玉県川越市南大塚6-40-1）","2023-05-19","株式会社スズケン\n愛知県名古屋市東区東片端町8",1180001017009,"一般競争入札",34559015,32380118,{"$f":"ROUNDDOWN(I104/H104,3)","v":0.93600000000000005},"単価契約\n一括調達（府中刑務所、立川拘置所、多摩少年院、愛光女子学園、東京少年鑑別所、さいたま少年鑑別所）"]
[102,"令和5年度名古屋刑務所職員定期健康診断等業務委託契約","支出負担行為担当官\n　名古屋刑務所長\n　中田　学司\n（愛知県みよし市ひばりヶ丘1-1）","2023-05-20","公益財団法人豊田地域医療センター\n愛知県豊田市西山町3-30-1",7180305007922,"一般競争入札",3553858,3479498,0.97899999999999998,"単価契約"]
[103,"令和5年度被収容者胸部デジタルレントゲン撮影業務委任契約","支出負担行為担当官\n　川越少年刑務所長\n　日笠　和彦\n（埼玉県川越市南大塚6-40-1）","2023-05-22","医療法人社団日健会\n東京都江東区亀戸6-56-15",4010605000547,"一般競争入札",1240272,861300,0.69399999999999995,"単価契約"]
[104,"令和5年度神戸刑務所被収容者健康診断業務委託　（定期健康診断693名外1件）","支出負担行為担当官\n　神戸刑務所長\n　八代　宏幸\n（兵庫県明石市大久保町森田120）","2023-05-22","医療法人愛悠会\n大阪府門真市殿島町6-4",5120005014994,"一般競争入札",1277595,1099230,0.86,"単価契約"]
[105,"令和5年度札幌刑務所環境整備業務請負（除草）契約","支出負担行為担当官\n　札幌刑務所長\n　飛鳥　雅子\n（北海道札幌市東区東苗穂2-1-5-1）","2023-05-22","株式会社ウェッジ\n北海道札幌市西区西野3条4-10-20",7430001061438,"一般競争入札",1980000,1532300,0.77300000000000002]
[106,"電話交換設備一式更新契約","支出負担行為担当官\n　新潟少年学院長\n　伊藤　雅美\n（新潟県長岡市御山町117-13）","2023-05-22","扶桑電通株式会社新潟営業所\n新潟県新潟市中央区米山3-1-63",6010001055706,"一般競争入札",7183000,7073000,0.98399999999999999]
[107,"遺言制度のデジタル化に関する調査研究業務の請負　一式","支出負担行為担当官\n　法務省大臣官房会計課長\n　民野　健治\n（東京都千代田区霞が関1-1-1）","2023-05-22","公益社団法人商事法務研究会\n東京都中央区日本橋3-6-2",5010005018552,"一般競争入札\n（総合評価実施）",7943567,7700000,0.96899999999999997]
[108,"松山空港ターミナル及び厳原港国際ターミナルの供用開始に伴う出入国管理業務個人識別情報システム用機器等の賃貸借　一式","支出負担行為担当官\n　出入国在留管理庁次長\n　西山　卓爾\n（東京都千代田区霞が関1-1-1）","2023-05-22","日本電気株式会社\n東京都港区芝5-7-1",7010401022916,"一般競争入札",30653603,30417200,0.99199999999999999,"5か年分の保守料を含む。\n本体価格合計\n585,200円\n賃貸借及び保守料\n29,832,000円"]
[109,"大阪合同庁舎第2・4号館外5合同庁舎で使用する電気の調達","支出負担行為担当官\n　近畿地方更生保護委員会委員長\n　三本松　篤\n（大阪府大阪市中央区大手前4-1-76）","2023-05-22","鈴与電力株式会社\n静岡県静岡市葵区栄町1-3",1080001022043,"一般競争入札","-",54130695,{"$error":"#VALUE!"},"・単価契約\n・一括調達（【近畿財務局】、公正取引委員会事務総局近畿中国四国事務所、大阪税関、近畿厚生局、近畿運輸局、大阪航空局、大阪管区気象台、国土地理院近畿地方測量部、近畿管区警察局、外務省大阪分室、近畿管区行政評価局、自衛隊大阪地方協力本部、近畿中部防衛局、大阪労働局、近畿財務局京都財務事務所、近畿地方整備局、京都労働局、近畿財務局神戸財務事務所、行政評価事務所、近畿農政局、電子申請事務センター、漁業調整事務所、近畿地方整備局、自然保護官事務所、神戸東労働基準監督署、麻薬取締部神戸分室、明石海峡公園事務所、神戸通商事務所、近畿財務局奈良財務事務所、行政監視行政相談センター、奈良税務署、近畿財務局和歌山財務事務所、和歌山行政監視行政相談センター、和歌山税務署、近畿厚生局和歌山事務所、近畿農政局和歌山県拠点、近畿財務局大津財務事務所、滋賀行政監視行政相談センター、大津税務署、近畿厚生局滋賀事務所、近畿農政局滋賀県拠点、自衛隊滋賀地方協力本部、大阪矯正管区、大阪出入国在留管理局、和歌山地方検察庁、和歌山地方法務局、大津地方検察庁、大津地方法務局）\n・予定価格については、同種の他の契約の予定価格を類推させるおそれがあるものであり非公表。\n・全体の契約金額は260,974,175円。"]
[110,"モバイルWI-FIルーター通信環境構築業務に係る請負契約","支出負担行為担当官\n　東日本成人矯正医療センター長\n　奥村　雄介\n（東京都昭島市もくせいの杜2-1-9）","2023-05-23","株式会社SSマーケット\n東京都八王子市子安町4-7-1",7010101010238,"一般競争入札",2766451,2382930,0.86099999999999999]
[111,"令和5年度青森刑務所トナーカートリッジ等供給契約\n（29品目）","支出負担行為担当官\n　青森刑務所長\n　三浦　智博\n（青森県青森市大字荒川字藤戸88）","2023-05-23","株式会社マルキ\n青森県青森市緑3-10-27",3420001001976,"一般競争入札",3514812,3199205,0.91,"単価契約"]
[112,"刑法等改正に伴う検察総合情報管理システムのアプリケーションプログラム改修業務の請負　一式","支出負担行為担当官\n　法務省大臣官房会計課長\n　民野　健治\n（東京都千代田区霞が関1-1-1）","2023-05-23","アクセンチュア株式会社\n東京都港区赤坂1-8-1 ",7010401001556,"一般競争入札\n（総合評価実施）",877706945,847000000,0.96499999999999997,"国庫債務負担行為"]
[113,"登記情報システム等に係る統合管理支援等業務の請負　一式","支出負担行為担当官\n　法務省大臣官房会計課長\n　民野　健治\n（東京都千代田区霞が関1-1-1）","2023-05-23","アクセンチュア株式会社\n東京都港区赤坂1-8-1",7010401001556,"一般競争入札\n（総合評価実施）",858652294,853282523,0.99299999999999999,"国庫債務負担行為"]
[114,"福井刑務所等除草及び樹木剪定等環境整備","支出負担行為担当官\n　福井刑務所長\n　森川　久浩\n（福井県福井市一本木町52）","2023-05-24","武田商事株式会社\n石川県野々市市堀内3-40",2220001000405,"一般競争入札",1115400,858000,0.76900000000000002]
[115,"コピー用紙供給契約（A4用紙800箱、A3用紙15箱、B4用紙5箱）","支出負担行為担当官\n　関東公安調査局長\n　二上　英生\n（東京都千代田区九段南1-1-10）","2023-05-24","有限会社三章堂\n東京都千代田区神田神保町1-103",2010002010093,"一般競争入札",2112121,1838485,0.87,"単価契約"]
[116,"「生活・就労ガイドブック」の翻訳・デザイン編集業務　一式","支出負担行為担当官\n　出入国在留管理庁次長\n　西山　卓爾\n（東京都千代田区霞が関1-1-1）","2023-05-24","株式会社さくらプランニング\n東京都板橋区中台1-21-7",6030001048831,"一般競争入札",5574699,2555256,0.45800000000000002]
[117,"令和5年度旧神奈川医療少年院環境整備業務に係る請負契約","支出負担行為担当官\n　東日本成人矯正医療センター長\n　奥村　雄介\n（東京都昭島市もくせいの杜2-1-9）","2023-05-24","株式会社五嶋造園\n東京都八王子市谷野町331",7012801009922,"一般競争入札",6738930,2585000,0.38300000000000001]
[118,"長期相続登記等未了土地解消作業（登記名義人200名分）の委託一式","支出負担行為担当官\n　盛岡地方法務局長\n　齋藤　広安\n（岩手県盛岡市盛岡駅西通1-9-15）","2023-05-24","一般社団法人神奈川県公共嘱託登記司法書士協会\n神奈川県横浜市中区吉浜町1",5020005002844,"一般競争入札",7689297,5829777,0.75800000000000001]
[119,"プリンタ用トナー等消耗品供給契約一式","支出負担行為担当官\n　さいたま地方検察庁検事正\n　林　秀行\n（埼玉県さいたま市浦和区高砂3-16-58）","2023-05-24","東京サラヤ株式会社\n東京都品川区東品川1-25-8",4010701006514,"一般競争入札",8310096,6516928,0.78400000000000003,"単価契約"]
[120,"長期相続登記等未了土地解消作業委託契約（200名分）","支出負担行為担当官\n　青森地方法務局長\n　小松　淳也\n（青森県青森市長島1-3-5）","2023-05-24","一般社団法人青森県公共嘱託登記司法書士協会\n青森県青森市長島3-5-16",2420005000455,"一般競争入札",7689297,7524000,0.97799999999999998]
[121,"植栽管理業務一式","支出負担行為担当官\n　さいたま地方検察庁検事正\n　林　秀行\n（埼玉県さいたま市浦和区高砂3-16-58）","2023-05-25","株式会社南埼緑工\n埼玉県さいたま市岩槻区大字釣上新田818",2030001018086,"一般競争入札",1790140,880000,0.49099999999999999,"一括調達（関東地方更生保護委員会、関東公安調査局）"]
[122,"福井春山合同庁舎外壁調査業務","支出負担行為担当官\n　福井地方検察庁検事正\n　築　雅子\n（福井県福井市春山1-1-54）","2023-05-25","株式会社ReR\n和歌山県和歌山市八番丁9",2170001013866,"一般競争入札","-",950833,{"$error":"#VALUE!"},"一括調達（【北陸財務局】、福井地方法務局、名古屋出入国在留管理局、中部地方更生保護委員会、中部公安調査局、大阪税関、金沢国税局、近畿厚生局、福井労働局、福井森林管理署、自衛隊福井地方協力本部）\n予定価格総額\n非公開\n同種の他の契約の予定価格を類推させるおそれがあるため公表しない。\n契約金額総額\n1,837,000円"]
[123,"九段第2合同庁舎中央監視室内自動制御装置（MIS、SCS、HUB）更新作業","支出負担行為担当官\n　東京法務局長\n　平光　信隆\n（東京都千代田区九段南1-1-15）","2023-05-25","日本カルミック株式会社\n東京都千代田区九段南1-5-10",8010001032991,"一般競争入札",1611613,1224696,0.75900000000000001,"一括調達（東京国税局，東京航空局，国土地理院関東地方測量部\n予定価格総額3,474,053円\n契約金額総額2,640,000円"]
[124,"自動車交換契約","支出負担行為担当官\n　旭川刑務所長\n　福島　利充\n（北海道旭川市東鷹栖3-20-620）","2023-05-25","旭川トヨタ自動車株式会社\n北海道旭川市4-2",4450001000264,"一般競争入札\n（総合評価実施）",2302232,1705864,0.74]
[125,"職員定期健康診断業務","支出負担行為担当官\n　月形刑務所長\n　林　文彦\n（北海道樺戸郡月形町1011）","2023-05-25","医療法人社団明日佳札幌健診センター\n北海道札幌市中央区南10条西1-1-30",1430005001734,"一般競争入札",1774815,1706540,0.96099999999999997,"単価契約"]
[126,"健康診断業務委託契約","支出負担行為担当官\n　福岡高等検察庁検事長\n　田辺　泰弘\n（福岡県福岡市中央区六本松4-2-3）","2023-05-25","一般財団法人医療情報健康財団\n福岡県福岡市博多区店屋町4-15",9290005013340,"一般競争入札",9550640,5651580,0.59099999999999997,"単価契約\n一括調達（福岡地方検察庁、九州地方更生保護委員会）"]
[127,"令和5年度名古屋刑務所被収容者定期健康診断等業務委託契約","支出負担行為担当官\n　名古屋刑務所長\n　中田　学司\n（愛知県みよし市ひばりヶ丘1-1）","2023-05-25","一般財団法人名古屋公衆医学研究所\n愛知県名古屋市中村区長筬町4-23",1180005004903,"一般競争入札",7619529,6857400,0.89900000000000002,"単価契約"]
[128,"福井春山合同庁舎エレベーター改修工事","支出負担行為担当官\n　福井地方検察庁検事正\n　築　雅子\n（福井県福井市春山1-1-54）","2023-05-25","フジテック株式会社北信越支店\n石川県金沢市長土塀1-16-15",3160001009212,"一般競争入札","-",33886820,{"$error":"#VALUE!"},"一括調達（【北陸財務局】、大阪税関、金沢国税局、近畿厚生局、福井労働局、福井森林管理署、自衛隊福井地方協力本部）\n予定価格総額\n非公開\n同種の他の契約の予定価格を類推させるおそれがあるため公表しない。\n契約金額総額\n81,400,000円"]
[129,"東京拘置所自動火災報知設備等更新整備一式","支出負担行為担当官\n　東京拘置所長\n　平良　敦志\n（東京都葛飾区小菅1-35-1）","2023-05-25","能美防災株式会社\n東京都千代田区九段南4-7-3",5010001008739,"一般競争入札",702476610,363000000,0.51600000000000001]
[130,"空調用燃料（重油）供給契約","支出負担行為担当官\n　岡山地方法務局長\n　戸井　琢也\n（岡山県岡山市北区南方1-3-58）","2023-05-26","はらだエネルギー株式会社\n岡山県岡山市南区妹尾539",1260001005467,"一般競争入札",1346400,1108087,0.82199999999999995,"単価契約\n一括調達（中国四国農政局）\n予定価格総額\n1,870,000円\n契約金額総額\n1,539,010円"]
[131,"令和5年度事務用品等消耗品共同調達契約（マスク436，000枚）","支出負担行為担当官\n　加古川刑務所長\n　小松　一俊\n（兵庫県加古川市加古川町大野1530）","2023-05-26","株式会社ノリムネ\n兵庫県姫路市飾磨区中島3245",1140001060631,"一般競争入札",1726560,1275736,0.73799999999999999,"単価契約"]
[132,"令和5年度長野地方検察庁・長野保護観察所・長野公安調査事務所職員健康診断に係る業務委託契約","支出負担行為担当官\n　長野地方検察庁検事正\n　山﨑　耕史\n（長野県長野市大字長野旭町1108）","2023-05-26","一般財団法人全日本労働福祉協会長野県支部\n長野県長野市大字大豆島中之島3223",3010705000051,"一般競争入札",2241239,2237290,0.998,"一括調達（関東地方更生保護委員会、関東公安調査局）"]
[133,"令和5年度感染症対策用防護服制作に係る資材調達（不繊布）","支出負担行為担当官\n　福島刑務所長\n　五十嵐　定一\n（福島県福島市南沢又字上原1）","2023-05-26","株式会社フィフティー・ヴィジョナリー\n千葉県千葉市中央区浜野町1216-64",4040001009578,"一般競争入札",4198040,2800820,0.66700000000000004]
[134,"令和5年度福島刑務所等吸収式冷温水発生器保守契約","支出負担行為担当官\n　福島刑務所長\n　五十嵐　定一\n（福島県福島市南沢又字上原1）","2023-05-26","荏原冷熱システム株式会社\n東京都大田区羽田旭町11-1",1010801013446,"一般競争入札",5847600,3300000,0.56399999999999995]
[135,"令和5年度司法書士試験、土地家屋調査士試験及び簡裁訴訟代理等能力認定考査の試験問題等の搬送業務請負　一式","支出負担行為担当官\n　法務省大臣官房会計課長\n　民野　健治\n（東京都千代田区霞が関1-1-1）","2023-05-26","日本通運株式会社\n東京都千代田区神田和泉町2",4010401022860,"一般競争入札",5679773,5280000,0.92900000000000005]
[136,"土地閉鎖登記簿電子化作業一式に係る請負契約","支出負担行為担当官\n　福岡法務局長\n　伊藤　敏治\n（福岡県福岡市中央区舞鶴3-5-25）","2023-05-26","株式会社福祉工房アイ・ディ・エス\n東京都日野市日野台5-22-37",5013401002278,"一般競争入札",21113605,16357000,0.77400000000000002]
[137,"令和5年度健康診断業務の委託　一式","支出負担行為担当官\n　法務省大臣官房会計課長\n　民野　健治\n（東京都千代田区霞が関1-1-1）","2023-05-26","公益財団法人愛世会\n東京都板橋区加賀1-3-1",4011405001520,"一般競争入札",39233986,37930772,0.96599999999999997,"単価契約\n一括調達（最高検察庁、東京高等検察庁、東京地方検察庁、関東地方更生保護委員会、公安調査庁、出入国在留管理庁）"]
[138,"令和5年度人権相談対応の支援業務等の請負　一式","支出負担行為担当官\n　法務省大臣官房会計課長\n　民野　健治\n（東京都千代田区霞が関1-1-1）","2023-05-26","株式会社保健同人フロンティア\n東京都港区新橋1-1-1",4010001029042,"一般競争入札",52008000,42900000,0.82399999999999995]
[139,"令和5年度松江法務総合仮庁舎、浜田法務合同庁舎及び松江地方検察庁益田支部パッケージエアコン点検業務","支出負担行為担当官\n　松江地方検察庁検事正\n　加藤　雄三\n（島根県松江市母衣町50）","2023-05-29","株式会社木下エネルギーソリューションズ\n広島県広島市佐伯区五日市町大字石内5998-1",3240001045562,"一般競争入札",1145100,979000,0.85399999999999998,"一括調達（松江地方法務局）"]
[140,"令和5年度衛生用品単価契約","支出負担行為担当官\n　北海少年院長\n　眞部　岳英\n（北海道千歳市大和4-746-10）","2023-05-29","菊屋商事株式会社\n北海道札幌市中央区南21-10-2-17",3430001004276,"一般競争入札",3586116,1913770,0.53300000000000003]
[141,"医薬品供給単価契約（47品目）","支出負担行為担当官\n　岐阜刑務所長\n　前田　昌幸\n（岐阜県岐阜市則松1-34-1）","2023-05-29","トーヨー商事株式会社\n岐阜県羽島郡笠松町北及130",3200001011295,"一般競争入札",2388917,2179235,0.91200000000000003,"単価契約\n一括調達（笠松刑務所、岐阜少年鑑別所）"]
[142,"川内地方合同庁舎ほか2庁舎で使用する電力需給契約","支出負担行為担当官\n　鹿児島地方法務局長\n　林　健児\n（鹿児島県鹿児島市鴨池新町1-2）","2023-05-29","中央電力株式会社\n東京都千代田区永田町2-13-5",1122001007449,"一般競争入札",4372084,3650690,0.83399999999999996,"単価契約\n一括調達（熊本国税局、鹿児島労働局、九州農政局、自衛隊鹿児島協力本部、九州農政局南部九州土地改良調査管理事務所）\n予定価格総額\n11,634,523円\n契約金額総額\n9,716140円"]
[143,"物品供給単価契約（文具類）","支出負担行為担当官\n　水戸地方検察庁検事正\n　竹内　寛志\n（茨城県水戸市北見町1-1）","2023-05-29","有限会社クノ商会\n茨城県笠間市笠間1712-6",2050002010107,"一般競争入札",4254595,3848235,0.90400000000000003,"単価契約\n一括調達（水戸地方法務局）"]
[144,"A重油供給単価契約","支出負担行為担当官\n　喜連川社会復帰促進センター長\n　岩﨑　裕之\n（栃木県さくら市喜連川5547）","2023-05-29","有限会社猪瀬燃料店\n栃木県大田原市紫塚1-13-18",7060002025124,"一般競争入札",4171200,4033920,0.96699999999999997,"単価契約"]
[145,"医薬品供給単価契約（131品目）","支出負担行為担当官\n　岐阜刑務所長\n　前田　昌幸\n（岐阜県岐阜市則松1-34-1）","2023-05-29","株式会社中央薬品\n神奈川県横浜市泉区和泉町1191-4",6020001029840,"一般競争入札",5882899,5221980,0.88700000000000001,"単価契約\n一括調達（笠松刑務所、岐阜少年鑑別所）"]
[146,"医薬品供給単価契約（132品目）","支出負担行為担当官\n　岐阜刑務所長\n　前田　昌幸\n（岐阜県岐阜市則松1-34-1）","2023-05-29","岸田薬品株式会社\n京都府京都市伏見区淀下津町257-43",2130001045649,"一般競争入札",9096087,8076665,0.88700000000000001,"単価契約\n一括調達（笠松刑務所、岐阜少年鑑別所）"]
[147,"外国人在留総合インフォメーションセンター運営業務（大阪出入国在留管理局）","支出負担行為担当官\n　大阪出入国在留管理局長\n　石崎　勇一\n（大阪府大阪市住之江区南港北1-29-53）","2023-05-29","公益財団法人入管協会\n東京都千代田区神田淡路町1-11-3",3010005003886,"一般競争入札",44120643,43560000,0.98699999999999999,"国庫債務負担行為"]
[148,"戸籍情報連携システム副本管理セグメント（戸籍副本管理システム）の機器更新に伴う設計・開発作業の請負　一式","支出負担行為担当官\n　法務省大臣官房会計課長\n　民野　健治\n（東京都千代田区霞が関1-1-1）","2023-05-29","株式会社日立製作所\n東京都千代田区丸の内1-6-6",7010001008844,"一般競争入札\n（総合評価実施）",322218072,322190000,0.999,"国庫債務負担行為"]
[149,"令和5年度事務用品単価契約","支出負担行為担当官\n　北海少年院長\n　眞部　岳英\n（北海道千歳市大和4-746-10）","2023-05-30","株式会社イシダ\n北海道札幌市豊平区平岸4-3-1-24",3430001001372,"一般競争入札",1678986,1249860,0.74399999999999999]
[150,"令和5年度函館少年刑務所医薬品等供給単価契約（7品目）","支出負担行為担当官\n　函館少年刑務所長\n　大月　健司\n（北海道函館市金堀町6-11）","2023-05-30","株式会社小平ケミカル\n東京都東大和市向原1-5-11",4012701009356,"一般競争入札",1820915,1357934,0.745,"単価契約"]
[151,"名古屋地方検察庁庁用自動車賃貸借契約","支出負担行為担当官\n　名古屋地方検察庁検事正\n　山田　利行\n（愛知県名古屋市中区三の丸4-3-1）","2023-05-30","株式会社トヨタレンタリース兵庫\n兵庫県神戸市長田区北町2-5",1140001016534,"一般競争入札\n（総合評価実施）",2706000,2224200,0.82099999999999995]
[152,"令和5年度福岡刑務所職員健康診断業務等委託契約（単価契約）","支出負担行為担当官\n　福岡刑務所長\n　林　克士\n（福岡県糟屋郡宇美町障子岳南6-1-1）","2023-05-30","一般財団法人医療情報健康財団\n福岡県福岡市博多区店屋町4-15",9290005013340,"一般競争入札",2884915,2243472,0.77700000000000002,"単価契約"]
[153,"高松刑務所総合警備システム監視カメラ更新等契約","支出負担行為担当官\n　高松刑務所長\n　中島　孝博\n（香川県高松市松福町2-16-63）","2023-05-30","三菱電機システムサービス株式会社四国支店\n香川県高松市花園町1-9-38",1010901011705,"一般競争入札",2484350,2365000,0.95099999999999996]
[154,"令和5年度函館少年刑務所医薬品等供給単価契約（28品目）","支出負担行為担当官\n　函館少年刑務所長\n　大月　健司\n（北海道函館市金堀町6-11）","2023-05-30","有限会社メデック\n北海道函館市中島町13-24",7440002004865,"一般競争入札",2915709,2647546,0.90800000000000003,"単価契約"]
[155,"2023年度版「出入国在留管理庁パンフレット」制作請負業務　一式","支出負担行為担当官\n　出入国在留管理庁次長\n　西山　卓爾\n（東京都千代田区霞が関1-1-1）","2023-05-30","株式会社キタジマ\n東京都墨田区立川2-11-7",5010601023501,"一般競争入札\n（総合評価実施）",3258460,2860514,0.877]
[156,"物品供給単価契約（トナー）","支出負担行為担当官\n　水戸地方検察庁検事正\n　竹内　寛志\n（茨城県水戸市北見町1-1）","2023-05-30","株式会社井上企画\n東京都町田市本町田3275-12",3012301002860,"一般競争入札",4504456,3239093,0.71899999999999997,"単価契約"]
[157,"六法全書等調達契約","支出負担行為担当官\n　名古屋地方検察庁検事正\n　山田　利行\n（愛知県名古屋市中区三の丸4-3-1）","2023-05-30","株式会社旭屋書店\n大阪府大阪市北区中津1-18-18",9120001060048,"一般競争入札",5981283,4894332,0.81799999999999995,"一括調達（名古屋高等検察庁、津地方検察庁、岐阜地方検察庁、福井地方検察庁、金沢地方検察庁、富山地方検察庁）"]
[158,"令和5年度名古屋拘置所ボイラー等の性能検査に伴う年次点検整備業務契約","支出負担行為担当官\n　名古屋拘置所長\n　小川　雅之\n（愛知県名古屋市東区白壁1-1）","2023-05-30","東邦冷熱工業株式会社\n愛知県名古屋市守山区大森5-102",6180001079639,"一般競争入札",6892328,6380000,0.92500000000000004]
[159,"自動車賃貸借等一式（12台）","支出負担行為担当官\n　公安調査庁総務部長\n　霜田　仁\n（東京都千代田区霞が関1-1-1）","2023-05-30","株式会社トヨタレンタリース兵庫\n兵庫県神戸市長田区北町2-5",1140001016534,"一般競争入札\n（総合評価実施）",38848150,34511400,0.88800000000000001]
[160,"医療衛生資材一式供給契約（消毒用エタノール含浸綿他18品目）","支出負担行為担当官\n　立川拘置所長\n　土屋　文男\n（東京都立川市泉町1156-11）","2023-05-31","株式会社小平ケミカル\n東京都東大和市向原1-5-11",4012701009356,"一般競争入札",3426541,1662423,0.48499999999999999,"単価契約"]
[161,"令和5年度高松高等・地方検察庁定期健康診断委託契約","支出負担行為担当官\n　高松地方検察庁検事正\n　宮川　博行\n（香川県高松市丸の内1-1）","2023-05-31","医療法人ウェルネスサポート\n香川県高松市紺屋町5-3",9470005005889,"一般競争入札",2520160,1842170,0.73,"単価契約\n一括調達（高松高等検察庁）"]
[162,"三重刑務所令和5年度医薬品等単価契約（38品目）","支出負担行為担当官\n　三重刑務所長\n　富永　喜敏\n（三重県津市修成町16-1）","2023-05-31","岸田薬品株式会社\n京都府京都市伏見区淀下津町257-43",2130001045649,"一般競争入札",2670386,1902236,0.71199999999999997,"単価契約"]
[163,"令和5年度川越少年刑務所環境整備（除草等）業務請負契約","支出負担行為担当官\n　川越少年刑務所長\n　日笠　和彦\n（埼玉県川越市南大塚6-40-1）","2023-05-31","株式会社鈴商\n千葉県君津市平山506-1",2040001052869,"一般競争入札",3619000,1980000,0.54700000000000004]
[164,"医療衛生資材一式供給契約（救急絆創膏他5品目）","支出負担行為担当官\n　立川拘置所長\n　土屋　文男\n（東京都立川市泉町1156-11）","2023-05-31","株式会社ムトウ\n北海道札幌市北区北十一条西4-1-15",2430001016743,"一般競争入札",3961760,2309171,0.58199999999999996,"単価契約"]
[165,"三重刑務所令和5年度医薬品等単価契約（67品目）","支出負担行為担当官\n　三重刑務所長\n　富永　喜敏\n（三重県津市修成町16-1）","2023-05-31","株式会社中央薬品\n神奈川県横浜市泉区和泉町1191-4",6020001029840,"一般競争入札",2738827,2432875,{"$f":"ROUNDDOWN(I168/H168,3)","v":0.88800000000000001},"単価契約"]
[166,"事務用品等供給単価契約","支出負担行為担当官\n　笠松刑務所長\n　齋藤　晶絵\n（岐阜県羽島郡笠松町中川町23）","2023-05-31","株式会社喜文堂事務機\n岐阜県岐阜市水海道3-22-14",8200001001647,"一般競争入札",2697070,2488363,0.92200000000000004,"単価契約\n一括調達（岐阜刑務所、岐阜少年鑑別所）"]
[167,"六法全書（令和5年版）等256冊供給契約","支出負担行為担当官\n　横浜地方検察庁検事正\n　齋藤　隆博\n（神奈川県横浜市中区日本大通9）","2023-05-31","株式会社丸善ジュンク堂書店\n東京都中央区日本橋2-3-10",9010001134416,"一般競争入札",3092815,2713154,0.877]
[168,"事務用品等供給単価契約","支出負担行為担当官\n　笠松刑務所長\n　齋藤　晶絵\n（岐阜県羽島郡笠松町中川町23）","2023-05-31","千葉紙工株式会社\n千葉県四街道市物井598-12",2040001047340,"一般競争入札",3787333,2770656,0.73099999999999998,"単価契約\n一括調達（岐阜刑務所、岐阜少年鑑別所）"]
[169,"事務用品等供給単価契約","支出負担行為担当官\n　笠松刑務所長\n　齋藤　晶絵\n（岐阜県羽島郡笠松町中川町23）","2023-05-31","長良化学工業株式会社\n岐阜県岐阜市旦島5-3-7",3200001003904,"一般競争入札",3252380,2844229,0.874,"単価契約\n一括調達（岐阜刑務所、岐阜少年鑑別所）"]
[170,"三重刑務所令和5年度医薬品等単価契約（7品目）","支出負担行為担当官\n　三重刑務所長\n　富永　喜敏\n（三重県津市修成町16-1）","2023-05-31","中北薬品株式会社津支店\n三重県津市藤方1000-3",6180001039139,"一般競争入札",5387898,5013687,0.93,"単価契約"]
[171,"三重刑務所自動火災報知設備更新等整備契約","支出負担行為担当官\n　三重刑務所長\n　富永　喜敏\n（三重県津市修成町16-1）","2023-05-31","アプロ通信株式会社中部支社\n三重県四日市市新正4-5-26",4200001001378,"一般競争入札",12320000,6490000,0.52600000000000002]
[172,"長期相続登記等未了土地解消作業（登記名義人200名分）の委託","支出負担行為担当官\n　鹿児島地方法務局長\n　林　健児\n（鹿児島県鹿児島市鴨池新町1-2）","2023-05-31","司法書士法人わたりやまもと\n宮城県亘理郡山元町山寺字山下89",4370005010318,"一般競争入札",7677054,6599945,0.85899999999999999]
[173,"三重刑務所非常電鈴設備更新等整備契約","支出負担行為担当官\n　三重刑務所長\n　富永　喜敏\n（三重県津市修成町16-1）","2023-05-31","三菱電機システムサービス株式会社\n愛知県名古屋市東区大幸南1-1-9",1010901011705,"一般競争入札",8470000,7084000,0.83599999999999997]
[174,"令和5年度横浜地方検察庁廃棄証拠品及び機密文書等（一般廃棄物、産業廃棄物及び特別管理産業廃棄物）の収集・運搬及び処分業務委託契約","支出負担行為担当官\n　横浜地方検察庁検事正\n　齋藤　隆博\n（神奈川県横浜市中区日本大通9）","2023-05-31","日東興業株式会社\n神奈川県横浜市中区海岸通3-12-1",9020001028229,"一般競争入札",8298496,7339240,0.88400000000000001,"単価契約"]
[175,"三重刑務所令和5年度医薬品等単価契約（161品目）","支出負担行為担当官\n　三重刑務所長\n　富永　喜敏\n（三重県津市修成町16-1）","2023-05-31","株式会社メディセオ津支店\n三重県津市丸之内養正町5-24",5010001087238,"一般競争入札",12811558,8702742,0.67900000000000005,"単価契約"]
[176,"A重油（6、7月分）供給契約","支出負担行為担当官\n　福岡刑務所長\n　林　克士\n（福岡県糟屋郡宇美町障子岳南6-1-1）","2023-05-31","朝日エナジー有限会社\n愛媛県今治市古谷甲548-1",7500002020427,"一般競争入札",10841600,9665040,0.89100000000000001,"単価契約"]
[177,"成田空港支局出国待機施設関係警備業務委託契約","支出負担行為担当官\n　東京出入国在留管理局長\n　宮尾　芳彰\n（東京都港区港南5-5-30）","2023-05-31","サンエス警備保障株式会社\n千葉県千葉市花見川区幕張本郷5-4-7",4040001002525,"一般競争入札",40718145,37290000,0.91500000000000004]
[178,"外国人在留総合インフォメーションセンター運営業務委託契約","支出負担行為担当官\n　名古屋出入国在留管理局長\n　清水　洋樹\n（愛知県名古屋市港区正保町5-18）","2023-05-31","株式会社バックスグループ\n東京都豊島区東池袋4-5-2",3011001018770,"一般競争入札",49164556,47916000,0.97399999999999998,"国庫債務負担行為"]
[179,"登記申請書類つづり込み帳の移管に係る運送請負業務一式","支出負担行為担当官\n　東京法務局長\n　平光　信隆\n（東京都千代田区九段南1-1-15）","2023-05-31","佐川急便株式会社\n京都府京都市南区上鳥羽角田町68",8130001000053,"一般競争入札",69614394,63580000,0.91300000000000003]
[180,"令和4年度名古屋拘置所矯正施設警備システム緊急整備（自動火災報知設備更新等整備）","支出負担行為担当官\n　名古屋拘置所長\n　小川　雅之\n（愛知県名古屋市東区白壁1-1）","2023-05-31","アプロ通信株式会社\n岐阜県岐阜市茜部菱野4-134",4200001001378,"一般競争入札",132406340,129800000,0.98]